Cogmind - Beta 10.2 @@@ ROGUE MODE // 2021.04.28 @ 19:16:28 // Winter2019/RPGLIKE Player: ChromeKnight Result: Destroyed by as-54487 with Assembled Maul Performance ------------- Evolutions (3) 1500 Regions Visited (10) 2000 Robots Destroyed (59) 295 Value Destroyed (1705) 1705 Prototype IDs (13) 260 Alien Tech Used (0) 0 Bonus (1439) 1439 TOTAL SCORE: 7199 Bonus ------- Follower Combat Kills 245 Destroyed Z-Imprinter 1000 Triggered Deep Caves Wall 500 Friendly Fire -306 Cogmind --------- Core Integrity 0/1050 Matter 250/300 Energy 37/100 System Corruption 4% Temperature Cool (0) Movement Hovering (120) Ox1 Location -7/Deep Caves Parts ------- > --- POWER (2) -------- Zionite Light DM Reactor > --- PROPULSION (2) --- Gravmag System > --- UTILITY (6) ------ Experimental Heat Sink Zionite Metafield Generator > --- WEAPON (3) ------- Heavy Laser Heavy Laser Flamer > --- INVENTORY (2) ---- Flamer Peak State ------------ > --- POWER ------------ Zionite Light DM Reactor Zionite Light DM Reactor > --- PROPULSION ------- Zionite Glidesys I Zionite Glidesys II > --- UTILITY ---------- Experimental Heat Sink Advanced Particle Charger Improved Maneuvering Thrusters Zionite Weapon Casing Zionite Weapon Casing Zionite Light Carapace > --- WEAPON ----------- Zionite Laser-S Zionite Laser-S Zionite Laser-S > --- INVENTORY -------- Zionite Metafield Generator Surveybot 24 Chip [Rating: 86] Favorites ----------- Power Micro Nuclear Core Engine Improved Ion Engine Power Core Micro Nuclear Core Reactor Zionite Light DM Reactor Propulsion Gravmag System Leg Aluminum Leg Wheel Armored Huge Wheel Hover Unit Gravmag System Utility Advanced Weight Redist. System Device Advanced Weight Redist. System Storage Small Matter Pod Processor Melee Analysis Suite Protection Light Armor Plating Weapon Heavy Laser Energy Gun Heavy Laser Energy Cannon Heavy Ion Cannon Ballistic Gun Improved Assault Rifle Special Weapon Flamer Impact Weapon Impact Mace Build | -11 -10 -9 -9 -8 -7 -7 -7 -7 -7 -7 ------- Run | Scr Mat Mat Min Mat Fac Was Fac Low Zio Dee Slots Evolved 9 | 5 . 2 . 1 1 . . . . . Power 1 | 1 . . . . . . . . . . Propulsion 1 | 1 . . . . . . . . . . Utility 5 | 1 . 2 . 1 1 . . . . . Weapon 2 | 2 . . . . . . . . . . Parts Attached 92 | 7 7 11 3 5 23 1 5 . 1 29 Power 11 | 2 1 1 . . 2 . 2 . . 3 Engine 5 | 2 . 1 . . 2 . . . . . Core 3 | . 1 . . . . . 2 . . . Reactor 3 | . . . . . . . . . . 3 Propulsion 15 | 2 3 . . 1 5 . . . . 4 Treads . | . . . . . . . . . . . Leg 8 | 2 3 . . . 3 . . . . . Wheel 1 | . . . . 1 . . . . . . Hover 6 | . . . . . 2 . . . . 4 Flight . | . . . . . . . . . . . Utility 31 | . 2 3 3 1 7 1 2 . . 12 Device 16 | . 1 1 . 1 4 1 . . . 8 Storage 1 | . 1 . . . . . . . . . Processor 3 | . . 1 . . 1 . 1 . . . Hackware . | . . . . . . . . . . . Protection 11 | . . 1 3 . 2 . 1 . . 4 Artifact . | . . . . . . . . . . . Weapon 35 | 3 1 7 . 3 9 . 1 . 1 10 Energy Gun 21 | 3 1 2 . 3 6 . . . . 6 Energy Cannon 2 | . . . . . 2 . . . . . Ballistic Gun 6 | . . 4 . . . . 1 . . 1 Ballistic Cannon . | . . . . . . . . . . . Launcher . | . . . . . . . . . . . Special Weapon 3 | . . . . . . . . . . 3 Impact Weapon 3 | . . 1 . . 1 . . . 1 . Slashing Weapon . | . . . . . . . . . . . Piercing Weapon . | . . . . . . . . . . . Special Melee Weapon . | . . . . . . . . . . . Unidentified Prototypes 11 | . . 1 . . 1 . . . . 9 Parts Lost 9 | . . . . . . . . . . 9 Power . | . . . . . . . . . . . Propulsion 2 | . . . . . . . . . . 2 Utility 4 | . . . . . . . . . . 4 Weapon 3 | . . . . . . . . . . 3 Highest Loss Streak 6 | . . . . . . . . . . 6 Average Slot Usage (%) 93 | . 83 97 90 84 95 86 93 100 100 92 Engine 7 | . 16 9 9 8 12 15 11 . . . Core 7 | . 5 9 9 8 2 . 3 15 15 6 Reactor 1 | . . . . . . . . . . 7 Leg 5 | . 22 19 18 2 1 . . . . . Wheel 1 | . . . . 6 2 . . . . . Hover 7 | . . . . . 8 15 15 15 15 12 Device 20 | . 5 9 9 8 22 30 30 30 30 27 Processor 4 | . . 4 9 8 6 . . 7 7 2 Protection 11 | . . 8 9 16 15 8 14 7 7 12 Energy Gun 16 | . 31 7 . 21 20 16 15 15 15 19 Ballistic Gun 6 | . . 22 27 3 . . 1 7 5 2 Naked Turns . | . . . . . . . . . . . Heaviest Build 52 | 13 17 24 28 32 52 52 47 39 39 43 Greatest Support 78 | 20 20 20 20 28 54 45 50 50 50 78 Greatest Overweight (x) 2 | 2 1 1 1 1 1 1 1 . . 1 Average Overweight (x) . | . . . 1 . . . . . . . Largest Inventory Capacity 2 | . . 1 1 1 1 1 1 1 1 2 Average Capacity 1 | . . . 1 1 1 1 1 1 1 1 Most Carried 2 | . . 1 1 1 1 1 1 1 1 2 Average Carried 1 | . . . 1 . 1 1 1 1 1 1 Final Capacity 2 | . . 1 1 1 1 1 1 1 1 2 Final Carried 1 | . . 1 1 1 1 1 1 1 1 1 Class Distribution -------------------- 33% | Scavenger-Gunner 24% | Gunner 15% | Tank 14% | Scavenger-Tank 9% | Mutant Dominant Class ---------------- Gunner | -10/Materials Scavenger-Gunner | -9/Materials Scavenger-Gunner | -9/Mines Scavenger-Tank | -8/Materials Tank | -7/Factory Mutant | -7/Waste Mutant | -7/Factory Gunner | -7/Lower Caves Gunner | -7/Zion Scavenger-Gunner | -7/Deep Caves Resources | -11 -10 -9 -9 -8 -7 -7 -7 -7 -7 -7 ----------- Run | Scr Mat Mat Min Mat Fac Was Fac Low Zio Dee Matter Collected 1622 | 270 188 366 111 50 206 . 123 37 5 266 Remotely . | . . . . . . . . . . . Salvage Created 2371 | . 113 681 161 344 326 . 337 93 . 316 Parts 138 | . 8 49 11 28 16 . 15 6 . 5 Haulers Intercepted 4 | . . 2 . . 2 . . . . . Recyclers Shooed 4 | . 1 1 . 2 . . . . . . Parts Field Recycled . | . . . . . . . . . . . Retrieved Matter . | . . . . . . . . . . . Parts Self-Destructed 7 | . . . . . . . . 7 . . Prevented . | . . . . . . . . . . . Kills | -11 -10 -9 -9 -8 -7 -7 -7 -7 -7 -7 ------- Run | Scr Mat Mat Min Mat Fac Was Fac Low Zio Dee Combat Hostiles Destroyed 50 | . 2 9 3 7 3 . 7 1 . 18 Guns 47 | . 2 9 3 6 1 . 7 1 . 18 Cannons 2 | . . . . . 2 . . . . . Classes Destroyed 15 | . 2 5 2 2 1 . . 1 . 2 Worker 9 | . 1 5 . 1 1 . 1 . . . Tunneler 1 | . . . 1 . . . . . . . Hauler 4 | . . 2 . . 2 . . . . . Recycler 6 | . . 3 . 1 1 . 1 . . . Operator 1 | . . . . 1 . . . . . . Watcher 4 | . . 2 . . 1 . 1 . . . Swarmer 6 | . . . . 3 . . 3 . . . Grunt 15 | . 2 6 . 4 . . 3 . . . Duelist 1 | . . 1 . . . . . . . . Sentry 5 | . . 2 2 . . . 1 . . . Demolisher 1 | . . . 1 . . . . . . . Programmer 3 | . . . . . 3 . . . . . Enhanced Grunt 1 | . . . . . . . . . . 1 Z-Technician 1 | . . . . . . . . . . 1 Assembled 17 | . . . . . . . . . . 17 Golem 1 | . . . . . . . . . . 1 Mutant 1 | . . . . . . . . 1 . . Best Kill Streak 14 | . 2 3 4 4 2 . 5 1 . 14 Combat Bots Only 14 | . 1 2 3 3 1 . 3 1 . 14 Max Kills in Single Turn 2 | . 1 1 1 1 1 . 2 1 . 2 Gunslinging 1 | . . . . . . . 1 . . 1 Exploded . | . . . . . . . . . . . Melee . | . . . . . . . . . . . Uniques/NPCs Destroyed 1 | . . . . . . . . . . 1 Z-Imprinter (-7/Deep Caves) Combat | -11 -10 -9 -9 -8 -7 -7 -7 -7 -7 -7 -------- Run | Scr Mat Mat Min Mat Fac Was Fac Low Zio Dee Damage Taken 4009 | . 325 239 186 380 214 . 445 72 . 2148 Core 2692 | . 283 185 135 243 163 . 284 48 . 1351 Absorbed by Shields . | . . . . . . . . . . . Redirected to Core 2082 | . 144 150 135 201 163 . 220 48 . 1021 Core Remaining (%) 88 | 100 81 . 83 90 . . . . . . Volleys Fired 179 | . 14 43 9 31 18 . 16 6 . 42 Largest 3 | . 3 3 3 3 3 . 3 3 . 3 Hottest 207 | . 130 151 69 165 207 . 166 166 . 198 Shots Fired 495 | . 35 124 27 93 54 . 37 17 . 108 Gun 487 | . 35 124 27 93 47 . 37 17 . 107 Cannon 7 | . . . . . 7 . . . . . Launcher . | . . . . . . . . . . . Special 1 | . . . . . . . . . . 1 Kinetic 143 | . . 102 27 . . . 4 6 . 4 Thermal 212 | . 25 14 . . 25 . 33 11 . 104 Explosive . | . . . . . . . . . . . Electromagnetic 140 | . 10 8 . 93 29 . . . . . Robot Hit Streak 14 | . 4 14 7 9 11 . 6 6 . 8 Robot Miss Streak 5 | . 3 3 2 3 5 . 2 1 . 4 Penetration Max 1 | . . . . . . . 1 . . 1 Secondary Targets 9 | . . 1 1 . . . 2 . . 5 Max Gunslinging Chain 1 | . . 1 1 . . . 1 . . 1 Shots Hit Robots 312 | . 20 83 17 63 35 . 25 10 . 59 Core Hits 120 | . 6 28 6 22 10 . 15 3 . 30 Critical Hits 2 | . . 1 . . . . 1 . . . Critical Kills 1 | . . 1 . . . . . . . . Critical Parts Destroyed 1 | . . . . . . . 1 . . . Melee Attacks 18 | . . . . . . . . . 18 . Impact 18 | . . . . . . . . . 18 . Slashing . | . . . . . . . . . . . Piercing . | . . . . . . . . . . . Sneak Attacks . | . . . . . . . . . . . Combat Hostiles . | . . . . . . . . . . . Follow-up Attacks . | . . . . . . . . . . . Damage Inflicted 5682 | . 199 1085 213 778 545 . 552 202 . 2108 Guns 5474 | . 197 1059 213 702 454 . 552 202 . 2095 Cannons 91 | . . . . . 91 . . . . . Explosions 102 | . . 26 . 76 . . . . . . Melee . | . . . . . . . . . . . Ramming 2 | . 2 . . . . . . . . . Kinetic 1333 | . . 917 213 . . . 86 68 . 49 Thermal 3200 | . 108 85 . 76 272 . 466 134 . 2059 Explosive . | . . . . . . . . . . . Electromagnetic 1147 | . 89 83 . 702 273 . . . . . Impact . | . . . . . . . . . . . Slashing . | . . . . . . . . . . . Piercing . | . . . . . . . . . . . Highest Corruption 9 | . . . . . 1 9 9 9 9 4 Average Corruption 4 | . . . . . 1 6 9 9 9 4 Corruption Purged . | . . . . . . . . . . . Effects 32 | . . . . . 1 1 14 12 3 1 Message Errors 7 | . . . . . 1 1 2 2 1 . Matter Fused 6 | . . . . . . . 4 2 . . Heat Flow Errors 3 | . . . . . . . . 2 1 . Energy Discharges 3 | . . . . . . . 2 . 1 . Parts Rejected 1 | . . . . . . . . . . 1 Data Loss (minor) 2 | . . . . . . . 1 1 . . Data Loss (major) 2 | . . . . . . . . 2 . . Misfires 1 | . . . . . . . 1 . . . Targeting Errors 6 | . . . . . . . 4 2 . . Weapon Failures 1 | . . . . . . . . 1 . . Overload Shots . | . . . . . . . . . . . Overflow Damage 33 | . . 3 . 14 16 . . . . . Projectiles 16 | . . . . . 16 . . . . . Explosions 17 | . . 3 . 14 . . . . . . Melee . | . . . . . . . . . . . Knockbacks . | . . . . . . . . . . . Impact . | . . . . . . . . . . . Kinetic . | . . . . . . . . . . . Secondary . | . . . . . . . . . . . Self-Inflicted Damage . | . . . . . . . . . . . Shots . | . . . . . . . . . . . Rammed 4 | . 3 . . . . . . . . 1 Targets Rammed 5 | . 4 . . . . . . . . 1 Kicked 1 | . 1 . . . . . . . . . Crushed . | . . . . . . . . . . . Highest Temperature 544 | . 544 166 6 281 . . . 224 58 127 Average Temperature 143 | . 297 54 4 148 . . . 129 58 41 Received Heat Transfer 1223 | . 126 105 18 144 . . 168 40 . 622 Effects 17 | . 16 . . 1 . . . . . . Shutdowns 7 | . 7 . . . . . . . . . Energy Bleed 1 | . . . . 1 . . . . . . Interference 3 | . 3 . . . . . . . . . Matter Decay 2 | . 2 . . . . . . . . . Short Circuit 2 | . 2 . . . . . . . . . Damage (minor) 1 | . 1 . . . . . . . . . Damage (core) 1 | . 1 . . . . . . . . . Siege Activations . | . . . . . . . . . . . Robots Corrupted 2 | . . . . 1 1 . . . . . Combat Hostiles 1 | . . . . 1 . . . . . . Parts Fried 5 | . . . . 3 2 . . . . . Impact Corruptions . | . . . . . . . . . . . Robots Melted . | . . . . . . . . . . . Combat Hostiles . | . . . . . . . . . . . Parts Melted 2 | . . . . . 2 . . . . . Heat Transferred 4415 | . 297 211 . 100 407 . 851 259 . 2290 Parts Sabotaged . | . . . . . . . . . . . Parts Stolen . | . . . . . . . . . . . Parts Stripped . | . . . . . . . . . . . Power Chain Reactions 3 | . . 1 . 2 . . . . . . Missiles Intercepted . | . . . . . . . . . . . Alert | -11 -10 -9 -9 -8 -7 -7 -7 -7 -7 -7 ------- Run | Scr Mat Mat Min Mat Fac Was Fac Low Zio Dee Peak Influence 291 | . 85 291 194 226 69 25 243 . . . Initial 93 | . . 35 93 75 25 10 10 . . . Average 84 | . 48 137 111 142 32 13 81 . . . Maximum Alert Level 1 | . . 1 . 1 . . 1 . . . Low Security (%) 91 | 100 100 81 100 76 100 100 88 . . . Level 1 8 | . . 18 . 23 . . 11 . . . Level 2 . | . . . . . . . . . . . Level 3 . | . . . . . . . . . . . Level 4 . | . . . . . . . . . . . Level 5 . | . . . . . . . . . . . High Security . | . . . . . . . . . . . Max Security . | . . . . . . . . . . . Squads Dispatched 9 | . . 2 . 2 4 . 1 . . . Investigation 3 | . . . . 2 1 . . . . . Extermination 3 | . . . . . 3 . . . . . Reinforcement 3 | . . 2 . . . . 1 . . . Assault . | . . . . . . . . . . . Garrison . | . . . . . . . . . . . Intercept . | . . . . . . . . . . . Construction Impeded . | . . . . . . . . . . . Haulers Reinforced . | . . . . . . . . . . . Stealth | -11 -10 -9 -9 -8 -7 -7 -7 -7 -7 -7 --------- Run | Scr Mat Mat Min Mat Fac Was Fac Low Zio Dee Distress Signals 2 | . . 2 . . . . . . . . Communications Jammed . | . . . . . . . . . . . Distress Signals . | . . . . . . . . . . . Times Spotted 98 | . 3 20 7 11 4 6 8 5 . 34 Peak Tracking Total 21 | . 2 3 7 4 1 6 4 3 . 21 Tactical Retreats 6 | . . 1 1 . . . . 1 . 3 Traps | -11 -10 -9 -9 -8 -7 -7 -7 -7 -7 -7 ------- Run | Scr Mat Mat Min Mat Fac Was Fac Low Zio Dee Traps Triggered 8 | . . 1 . 1 5 . 1 . . . Indirectly . | . . . . . . . . . . . Trap Hack Attempts . | . . . . . . . . . . . Triggered . | . . . . . . . . . . . Disarmed . | . . . . . . . . . . . Reprogrammed . | . . . . . . . . . . . Reused . | . . . . . . . . . . . Traps Extracted . | . . . . . . . . . . . Installed . | . . . . . . . . . . . Triggered . | . . . . . . . . . . . Machines | -11 -10 -9 -9 -8 -7 -7 -7 -7 -7 -7 ---------- Run | Scr Mat Mat Min Mat Fac Was Fac Low Zio Dee Machines Disabled 3 | . . . . . . . . 1 . 2 Max in Single Turn 1 | . . . . . . . . 1 . 1 Garrison Access 1 | . . . . . . . 1 . . . Machines Sabotaged . | . . . . . . . . . . . Garrisons Compromised . | . . . . . . . . . . . Overloaded Fab Kills . | . . . . . . . . . . . Fab Network Shutdowns . | . . . . . . . . . . . Hacking | -11 -10 -9 -9 -8 -7 -7 -7 -7 -7 -7 --------- Run | Scr Mat Mat Min Mat Fac Was Fac Low Zio Dee Machines Accessed 10 | . 1 1 . 2 3 . 2 . 1 . Terminals 4 | . 1 1 . 1 . . 1 . . . Fabricators 2 | . . . . . 2 . . . . . Repair Stations . | . . . . . . . . . . . Recycling Units 2 | . . . . 1 1 . . . . . Scanalyzers . | . . . . . . . . . . . Garrison Access 1 | . . . . . . . 1 . . . Total Hacks 20 | . 1 3 . 6 4 . 2 . 4 . Successful 14 | . 1 2 . 4 2 . 1 . 4 . Failed 6 | . . 1 . 2 2 . 1 . . . Catastrophic 4 | . . . . 1 2 . 1 . . . Database Lockouts . | . . . . . . . . . . . Manual 5 | . . 3 . . . . 1 . 1 . Terminals 9 | . 1 3 . 4 . . 1 . . . Fabricators 3 | . . . . . 3 . . . . . Repair Stations . | . . . . . . . . . . . Recycling Units 3 | . . . . 2 1 . . . . . Scanalyzers . | . . . . . . . . . . . Garrison Access 1 | . . . . . . . 1 . . . Terminal Hacks 9 | . 1 2 . 2 . . . . 4 . Record 2 | . . . . 2 . . . . . . Part Schematic 4 | . . . . . . . . . 4 . Robot Analysis 2 | . . 2 . . . . . . . . Prototype ID Bank 1 | . 1 . . . . . . . . . Fabricator Hacks 1 | . . . . . 1 . . . . . Build 1 | . . . . . 1 . . . . . Repair Station Hacks . | . . . . . . . . . . . Recycling Unit Hacks 3 | . . . . 2 1 . . . . . Retrieve Matter 2 | . . . . 2 . . . . . . Retrieve Components 1 | . . . . . 1 . . . . . Scanalyzer . | . . . . . . . . . . . Garrison Access Hacks 1 | . . . . . . . 1 . . . Seal Access 1 | . . . . . . . 1 . . . Unauthorized Hacks . | . . . . . . . . . . . Terminals . | . . . . . . . . . . . Fabricators . | . . . . . . . . . . . Repair Stations . | . . . . . . . . . . . Recycling Units . | . . . . . . . . . . . Scanalyzers . | . . . . . . . . . . . Garrison Access . | . . . . . . . . . . . Data Cores Recovered 1 | . . . . 1 . . . . . . Used 1 | . . . . 1 . . . . . . Hacking Detections 6 | . . 1 . 1 3 . 1 . . . Full Trace Events 1 | . . . . 1 . . . . . . Feedback Events . | . . . . . . . . . . . Feedback Blocked . | . . . . . . . . . . . Robot Schematics Acquired . | . . . . . . . . . . . Robots Built 1 | . . . . . 1 . . . . . Matter 219 | . . . . . 219 . . . . . Time 116 | . . . . . 116 . . . . . Total Robot Build Rating 3 | . . . . . 3 . . . . . Part Schematics Acquired 4 | . . . . . . . . . 4 . Parts Built . | . . . . . . . . . . . Matter . | . . . . . . . . . . . Time . | . . . . . . . . . . . Total Part Build Rating . | . . . . . . . . . . . Parts Repaired . | . . . . . . . . . . . Time . | . . . . . . . . . . . Parts Recycled . | . . . . . . . . . . . Recycled Matter . | . . . . . . . . . . . Retrieved Matter 241 | . . . . 241 . . . . . . Retrieved Components 3 | . . . . . 3 . . . . . Parts Scanalyzed . | . . . . . . . . . . . Part Schematics Acquired . | . . . . . . . . . . . Parts Damaged . | . . . . . . . . . . . Bothacking | -11 -10 -9 -9 -8 -7 -7 -7 -7 -7 -7 ------------ Run | Scr Mat Mat Min Mat Fac Was Fac Low Zio Dee Used RIF Installer . | . . . . . . . . . . . Robots Hacked . | . . . . . . . . . . . Non-combat . | . . . . . . . . . . . Combat . | . . . . . . . . . . . Robot Hacks Applied . | . . . . . . . . . . . Relay Couplers Released . | . . . . . . . . . . . Robots Rewired 4 | . . . . 1 . . . 3 . . Allies Hacked . | . . . . . . . . . . . Hacks Repelled . | . . . . . . . . . . . Allies | -11 -10 -9 -9 -8 -7 -7 -7 -7 -7 -7 -------- Run | Scr Mat Mat Min Mat Fac Was Fac Low Zio Dee Total Allies 12 | . . . 3 1 1 . . 3 4 . Largest Group 7 | . . . 3 1 1 1 . 3 7 7 Highest-Rated Group 313 | . . . 40 16 20 20 . 60 313 313 Highest-Rated Ally 94 | . . . 16 16 20 20 . 20 94 94 Total Orders 1 | . . . . . 1 . . . . . AID 1 | . . . . . 1 . . . . . Ally Attacks 81 | . . . 24 3 . . . . . 54 Total Damage 1714 | . . . 190 30 . . . . . 1494 Kills 15 | . . . 2 . . . . . . 13 Allies Corrupted . | . . . . . . . . . . . Allies Melted . | . . . . . . . . . . . Intel | -11 -10 -9 -9 -8 -7 -7 -7 -7 -7 -7 ------- Run | Scr Mat Mat Min Mat Fac Was Fac Low Zio Dee Robot Analysis Total 2 | . . 2 . . . . . . . . Derelict Logs Recovered 3 | . . . 1 . . . . 1 1 . Drone Launches . | . . . . . . . . . . . Drone Recoveries . | . . . . . . . . . . . Exploration | -11 -10 -9 -9 -8 -7 -7 -7 -7 -7 -7 ------------- Run | Scr Mat Mat Min Mat Fac Was Fac Low Zio Dee Turns Passed 4703 | 54 205 650 321 437 1010 55 290 240 473 968 Spaces Moved 3499 | 40 104 220 190 190 730 81 250 256 691 747 Core 89 | 16 . . . . . . . . . 73 Treads . | . . . . . . . . . . . Legs 653 | 24 104 220 190 42 73 . . . . . Wheels 386 | . . . . 148 238 . . . . . Hover 2371 | . . . . . 419 81 250 256 691 674 Flight . | . . . . . . . . . . . Fastest Speed 25 | 50 120 120 150 110 56 56 56 56 56 25 Average Speed 82 | 109 122 140 150 118 90 57 78 56 56 62 Slowest Speed 150 | 150 150 150 150 150 150 116 116 56 56 130 Overloaded Moves . | . . . . . . . . . . . Propulsion Burnouts . | . . . . . . . . . . . Robots Hopped . | . . . . . . . . . . . Cave-ins Triggered . | . . . . . . . . . . . Exploration Rate (%) 36 | 4 26 28 45 17 20 71 7 40 79 60 Regions Visited 10 Branch Regions 4 Pre-discovered Areas 1 | . . . . . . . . . 1 . Known Exits Taken 3 | . . . . . . . 1 1 1 . Unknown Exits Taken 5 | 1 1 1 1 1 . . . . . . Scrap Searched 3 | . . . 1 . . . . 1 1 . Spaces Dug 3 | . . . . . . . . . 3 . Terrain Destroyed 28 | . . 3 . 6 1 . . 1 3 14 Melee 3 | . . . . . . . . . 3 . Projectile 16 | . . . . . 1 . . 1 . 14 AOE 9 | . . 3 . 6 . . . . . . Terrain Rammed . | . . . . . . . . . . . Walls Destroyed . | . . . . . . . . . . . Machines Disabled . | . . . . . . . . . . . Actions | -11 -10 -9 -9 -8 -7 -7 -7 -7 -7 -7 --------- Run | Scr Mat Mat Min Mat Fac Was Fac Low Zio Dee Total 4890 | 46 152 466 206 332 1038 90 309 338 749 1164 Wait 872 | . 13 162 . 82 204 6 23 59 40 283 Move 3490 | 39 103 219 189 189 730 80 249 255 690 747 Hop . | . . . . . . . . . . . Pick Up 5 | . . 1 . 1 . . . . . 3 Fast Attach 75 | 7 5 10 2 5 18 . 5 . . 23 Attach 3 | . . . . . . . . . . 3 Detach 4 | . . . . . . . . . . 4 Swap 14 | . 2 1 1 . 5 1 . . 1 3 Drop 71 | . 5 10 2 7 19 3 3 . . 22 Fire 179 | . 14 43 9 31 18 . 16 6 . 42 Melee 18 | . . . . . . . . . 18 . Ram 1 | . . . . . . . . . . 1 Kick 4 | . 4 . . . . . . . . . Crush . | . . . . . . . . . . . Escape Stasis 39 | . . . . . 39 . . . . . Rewire 21 | . . . . 3 . . . 18 . . Trap . | . . . . . . . . . . . Miscellaneous 94 | . 6 20 3 14 5 . 13 . . 33 Route ------- -11/Scrapyard -10/Materials -9/Materials -9/Mines -8/Materials (discovered 2 exits: *Fac / Sto) -7/Factory -7/Waste -7/Factory -7/Lower Caves -7/Zion (discovered 2 exits: *Dee / [*Pro]) -7/Deep Caves History --------- Turn | Location | Event 1 | -11/Scrapyard | Upgraded with Power slot (x1) 1 | -11/Scrapyard | Upgraded with Propulsion slot (x1) 1 | -11/Scrapyard | Upgraded with Utility slot (x1) 1 | -11/Scrapyard | Upgraded with Weapon slot (x2) 10 | -11/Scrapyard | Discovered new exit (range 15) 55 | -11/Scrapyard | Entered Materials 238 | -10/Materials | Discovered new exit (range 10) 260 | -10/Materials | Entered another Materials area 262 | -9/Materials | Reached level 2 263 | -9/Materials | Upgraded with Utility slot (x1) 511 | -9/Materials | Build established: Scavenger-Gunner 772 | -9/Materials | Discovered new exit (range 12) 880 | -9/Materials | Reached level 3 883 | -9/Materials | Upgraded with Utility slot (x1) 910 | -9/Materials | Entered Mines 922 | -9/Mines | Assisted by bots powering up and referring to "LRC-V3" 984 | -9/Mines | Assembled infested the area 989 | -9/Mines | Assisted by a Guerilla fighting off Assembled 1159 | -9/Mines | Discovered new exit (range 10) 1231 | -9/Mines | Entered Materials 1232 | -8/Materials | Identified exit to Storage 1233 | -8/Materials | Reached level 4 1233 | -8/Materials | Upgraded with Utility slot (x1) 1369 | -8/Materials | Reached level 5 1422 | -8/Materials | Discovered new exit (range 16) 1495 | -8/Materials | Build established: Scavenger-Tank 1668 | -8/Materials | Entered Factory 1670 | -7/Factory | Reached level 6 1676 | -7/Factory | Upgraded with Utility slot (x1) 2067 | -7/Factory | Build established: Tank 2437 | -7/Factory | Fabricated M-28 Smith (x1) 2678 | -7/Factory | Sucked down chute 2678 | -7/Factory | Entered Waste 2680 | -7/Waste | 1 allies followed down the chute 2693 | -7/Waste | EMP discharged 2695 | -7/Waste | Spotted C-40 Crusher 2695 | -7/Waste | Spotted C-40 Crusher 2707 | -7/Waste | Spotted C-40 Crusher 2709 | -7/Waste | Spotted C-40 Crusher 2709 | -7/Waste | Spotted C-40 Crusher 2713 | -7/Waste | Spotted C-40 Crusher 2726 | -7/Waste | Discovered new exit (range 12) 2733 | -7/Waste | Entered Factory 2830 | -7/Factory | Discovered new exit (range 13) 2866 | -7/Factory | Reached level 7 3023 | -7/Factory | Identified exit to Lower Caves 3023 | -7/Factory | Entered Lower Caves 3024 | -7/Lower Caves | Encountered a Warlord checkpoint 3083 | -7/Lower Caves | Learned location of 2 exits from Factory 3137 | -7/Lower Caves | Attacked by a delusional Derelict stockpiling Unaware 3203 | -7/Lower Caves | A Derelict revealed a hidden shortcut to a safe place 3208 | -7/Lower Caves | Identified exit to Zion 3250 | -7/Lower Caves | Build established: Gunner 3263 | -7/Lower Caves | Entered Zion 3263 | -7/Zion | Accompanied by 3 allies 3265 | -7/Zion | Reached level 8 3293 | -7/Zion | Given the Hacking Drone Bay 3309 | -7/Zion | Received a hallucinogenic algorithm 3312 | -7/Zion | Discovered new exit (range 11) 3326 | -7/Zion | System corruption cleaned by Quarantine Array 3359 | -7/Zion | Gained Derelict followers 3402 | -7/Zion | Given A8's code to call for help 3435 | -7/Zion | Learned Factory terminal intel 3537 | -7/Zion | Loaded intel: 6 derelict terminal locations 3564 | -7/Zion | Learned location of Armory (-3) 3689 | -7/Zion | Discovered new exit (range 4) 3691 | -7/Zion | Saw the warning signs outside the Deep Caves entrance 3702 | -7/Zion | Enhanced Grunt warped into view, answering call for help 3704 | -7/Zion | Identified exit to Deep Caves 3713 | -7/Zion | Enhanced Grunt warped into view, answering call for help 3736 | -7/Zion | Entered Deep Caves 3736 | -7/Deep Caves | Accompanied by 7 allies 3766 | -7/Deep Caves | Found Surveybot 24 Scanner 3768 | -7/Deep Caves | Found Surveybot 24 Chip 3986 | -7/Deep Caves | Attacked by Z-Imprinter 4009 | -7/Deep Caves | Reached level 9 4009 | -7/Deep Caves | Allies destroyed Z-Imprinter 4016 | -7/Deep Caves | Found Prototype Protection 4016 | -7/Deep Caves | Identified Zio. Weapon Casing 4019 | -7/Deep Caves | Found Prototype Device 4019 | -7/Deep Caves | Identified Zio. Metafield Generator 4034 | -7/Deep Caves | Found Zio. Weapon Casing 4116 | -7/Deep Caves | Z-Facility disabled 4241 | -7/Deep Caves | Found Zio. Weapon Casing 4300 | -7/Deep Caves | Build established: Scavenger-Gunner 4390 | -7/Deep Caves | Spotted as-81443 4464 | -7/Deep Caves | Destroyed as-81443 4475 | -7/Deep Caves | Found Prototype Device 4475 | -7/Deep Caves | Identified Exp. Thermal Shield 4557 | -7/Deep Caves | Triggered Deep Caves wall 4641 | -7/Deep Caves | Core integrity fell below 50% 4667 | -7/Deep Caves | Destroyed 14 combat bots 4680 | -7/Deep Caves | Lost 6 parts (1n2u3w) 4691 | -7/Deep Caves | Core integrity fell below 20% 4704 | -7/Deep Caves | Destroyed by as-54487 with Assembled Maul Last Messages --------------- 04643_ as-73823 destroyed. 04643_ Switching to secondary target: as-76274. 04644_ Zio. Laser-S destroyed. 04646_ as-76274 destroyed. 04649_ Zio. Laser-S destroyed. 04651_ Dropped Adv. Particle Charger. 04653_ Acquired 10 matter. 04654_ Slammed into as-30920. 04665_ Acquired Flamer. 04674_ Dropped Surveybot 24 Chip. 04675_ Dropped Exp. Thermal Shield. 04681_ Acquired Zio. Light DM Reactor. 04682_ Acquired 30 matter. 04684_ Acquired Gravmag System. 04686_ System corrupted: Gravmag System rejected. 04686_ Acquired Gravmag System. 04688_ Dropped Zio. Light DM Reactor. 04689_ Acquired Hvy. Laser. 04698_ as-22416 destroyed. 04698_ Switching to secondary target: as-54487. Map ----- +----------------------------------------------------+ | ?????????????????????????????????????????""%!% | | ?????????????????????????????????????????" * | | ??????????????????????????????????????????"%/ | | ?????????????????????????????????????????"" | | ?????????????????????????????????????????"""" | | ??????????????????????????? ?????????""""" | | ?????????????? ? ??????? ?????" | | ????????????? ?? "????????""" | | ????????????? ""??????""""" | | ????????##### """"""??"""""" | | ???????## ## """"" """"""" | | ???????# ## """" """"""" | | ???????# # """" """"" | | ??????## """" """ | | ####### """" | | """""""""" %= | | = ! """"""""" / | | ! | | ####### ! | | ??????# ! | | ??????### | | ????????# ?? * | | ????????## a ! *!! | | ?????????# % %!! = | | ?????????# ###aa ### ## | | ?????????## ###?#@ #?## ##? | | ??????????# #???#####??### #####?? | | ??????????## #######????????????###########?????? | | ???????????####??????????????????????????????????? | | | | | | | | | | | | | | | | | | | | | | | | | | | | | | | | | | | | | | | | | | | +----------------------------------------------------+ Best States ------------- Heat Dissipation 100 Energy Generation 49 Energy Capacity 350 Matter Stores 350 Matter Capacity 350 Sight Range 22 Robot Scan Range 6 Terrain Scan Density 10 Additional Mass Support 18 Armor Coverage 450 Resistance: TH 30 Propulsion Shielding 33 Weapon Shielding 100 Evasion (%) 63 Melee Accuracy 5 Particle Charging 25 Item Schematics ----------------- Battle Cannon | -7/Zion | Free Slug Cannon | -7/Zion | Free Ripper | -7/Zion | Free Tactical Coordination Suite | -7/Zion | Free Robot Schematics ------------------ None Fabricated ------------ M-28 Smith | x1 | -7/Factory | Preloaded Alien Tech Used ----------------- None Achievements -------------- None Challenges ------------ None RPGLIKE | -11 -10 -9 -9 -8 -7 -7 -7 -7 -7 -7 --------- Run | Scr Mat Mat Min Mat Fac Was Fac Low Zio Dee Levels Raised 8 | . . 2 . 2 1 . 1 . 1 1 XP Earned 15769 | 3000 250 2875 1159 2400 2085 200 885 575 500 1840 XP Spent 14920 | 2960 . 2875 . 2760 1800 . 1525 . . 3000 Upgrades 43 | 9 . 8 . 10 2 . 7 . . 7 Power Slot 1 | 1 . . . . . . . . . . Propulsion Slot 1 | 1 . . . . . . . . . . Utility Slot 5 | 1 . 2 . 1 1 . . . . . Weapon Slot 2 | 2 . . . . . . . . . . Core Integrity 9 | 4 . . . . . . 5 . . . Heat Dissipation 8 | . . . . 8 . . . . . . Mass Support 2 | . . . . . 1 . 1 . . . Inventory Capacity 2 | . . 1 . . . . . . . 1 Sensor Range 3 | . . 3 . . . . . . . . Ranged Accuracy 2 | . . . . 1 . . 1 . . . Melee Accuracy 2 | . . 2 . . . . . . . . TH Resistance % 4 | . . . . . . . . . . 4 TH Damage % 2 | . . . . . . . . . . 2 Protomatter Created 680 | . 45 213 . 118 72 . 92 . . 140 Integrity Restored 1948 | . 135 394 50 303 111 . 276 . . 679 Core 1638 | . 135 283 50 303 111 . 276 . . 480 Parts 310 | . . 111 . . . . . . . 199 Protomatter Decayed 350 | . . 45 69 14 35 . . . . 187 Game ------ Seed HugeSpreadCutter Manual? 0 Play Time 00:39:07 Cumulative 173.8 hours Start 2021.04.28 @ 18:39:14 End 2021.04.28 @ 19:16:28 Sessions 1 Manual Loads 0 Difficulty Rogue Special Mode Winter2019/RPGLIKE Game No. 358 Rogue 204 Adventurer 148 Explorer 6 Win Type - Total 3 Types 3/0/0/0/0/0/0/0/0 Lore% 69 Gallery% 80 Achievement% 58 Wizard Run 0 Options --------- ASCII 0 Keyboard 0 Movement Numpad Keybinds 0 Fullscreen 1 Font 14/X11 Map View 84x54 Tactical HUD 1 Map Filters NONE Filters NONE Steam 1 RUN: 63a24c95-d473-4e41-9439-d87249420729